Department Family,Entity,Date of Payment,Expense Type,Expense Area,Supplier,Transaction Number,Amount in Sterling,Line Description
ECGD,ECGD,11 Oct 21,Non Legal Recoverable Expense,PMD,Citibank NA London,         743,"31,986.00",Recoverable expense
ECGD,ECGD,15 Oct 21,Legal Recoverable Expense,LD,Kennedys Law LLP,         746,"98,662.89",Recoverable Legal Services
ECGD,ECGD,15 Oct 21,Legal Recoverable Expense,LD,Kennedys Law LLP,         747,"40,357.15",Recoverable Legal Services
ECGD,ECGD,15 Oct 21,Legal Recoverable Expense,LD,Allen & Overy,         752,"67,640.16",Recoverable Legal Services
ECGD,ECGD,19 Oct 21,Non Legal Recoverable Expense,PMD,Rolls-Royce Leasing Limited,         761,"135,130.77",Recoverable expense
ECGD,ECGD,3 Oct 21,Agency - Interim Managers,HRD,Alexander Mann Solutions,       81324,"2,100.20",Interim Staff
ECGD,ECGD,3 Oct 21,Agency - Interim Managers,HRD,Alexander Mann Solutions,       81324,"2,181.40",Interim Staff
ECGD,ECGD,3 Oct 21,Agency - Interim Managers,HRD,Alexander Mann Solutions,       81324,"2,556.55",Interim Staff
ECGD,ECGD,3 Oct 21,Agency - Interim Managers,HRD,Alexander Mann Solutions,       81324,"2,637.70",Interim Staff
ECGD,ECGD,3 Oct 21,Agency - Interim Managers,HRD,Alexander Mann Solutions,       81324,"2,668.45",Interim Staff
ECGD,ECGD,3 Oct 21,Agency - Interim Managers,HRD,Alexander Mann Solutions,       81324,"3,005.50",Interim Staff
ECGD,ECGD,3 Oct 21,Agency - Interim Managers,HRD,Alexander Mann Solutions,       81324,"3,005.50",Interim Staff
ECGD,ECGD,3 Oct 21,Agency - Specialist Contractors,HRD,Alexander Mann Solutions,       81324,"2,515.03",Interim Staff
ECGD,ECGD,3 Oct 21,Agency - Specialist Contractors,HRD,Alexander Mann Solutions,       81324,"2,823.05",Interim Staff
ECGD,ECGD,3 Oct 21,Agency - Specialist Contractors,HRD,Alexander Mann Solutions,       81324,"2,823.05",Interim Staff
ECGD,ECGD,3 Oct 21,Agency - Specialist Contractors,HRD,Alexander Mann Solutions,       81324,"2,823.05",Interim Staff
ECGD,ECGD,3 Oct 21,Agency - Temporary Staff,HRD,Alexander Mann Solutions,       81324,692.40,Interim Staff
ECGD,ECGD,3 Oct 21,Agency - Temporary Staff,HRD,Alexander Mann Solutions,       81324,796.61,Interim Staff
ECGD,ECGD,5 Oct 21,Overseas Export Managers,OCCMC,Foreign & Commonwealth Office,       81325,"226,733.02",Overseas Staff
ECGD,ECGD,5 Oct 21,Overseas Export Managers,OCCMC,Foreign & Commonwealth Office,2730,"-194,668.83",Overseas Staff
ECGD,ECGD,5 Oct 21,Capital Items (goods),HRD,HM Treasury,       81329,"64,045.66",Building works costs
ECGD,ECGD,12 Oct 21,Online costs,Risk Approval Division,Fitch Solutions Ltd,       81339,"25,953.89",Country Risk Assesments
ECGD,ECGD,10 Oct 21,Change Board Projects,Change Board,KPMG,       81340,"120,400.00",Project IT services
ECGD,ECGD,11 Oct 21,IT Software Licensing & Subscription,ID,Bytes Software Services Ltd,       81348,"23,012.08",IT Systems
ECGD,ECGD,10 Oct 21,Agency - Interim Managers,HRD,Alexander Mann Solutions,       81351,"1,582.62",Interim Staff
ECGD,ECGD,10 Oct 21,Agency - Interim Managers,HRD,Alexander Mann Solutions,       81351,"2,181.40",Interim Staff
ECGD,ECGD,10 Oct 21,Agency - Interim Managers,HRD,Alexander Mann Solutions,       81351,"2,181.40",Interim Staff
ECGD,ECGD,10 Oct 21,Agency - Interim Managers,HRD,Alexander Mann Solutions,       81351,"2,556.55",Interim Staff
ECGD,ECGD,10 Oct 21,Agency - Interim Managers,HRD,Alexander Mann Solutions,       81351,"2,668.45",Interim Staff
ECGD,ECGD,10 Oct 21,Agency - Specialist Contractors,HRD,Alexander Mann Solutions,       81351,"1,693.83",Interim Staff
ECGD,ECGD,10 Oct 21,Agency - Specialist Contractors,HRD,Alexander Mann Solutions,       81351,"2,823.05",Interim Staff
ECGD,ECGD,10 Oct 21,Agency - Specialist Contractors,HRD,Alexander Mann Solutions,       81351,"2,823.05",Interim Staff
ECGD,ECGD,10 Oct 21,Agency - Specialist Contractors,HRD,Alexander Mann Solutions,       81351,"2,823.05",Interim Staff
ECGD,ECGD,10 Oct 21,Agency - Specialist Contractors,HRD,Alexander Mann Solutions,       81351,"2,874.32",Interim Staff
ECGD,ECGD,10 Oct 21,Agency - Specialist Contractors,HRD,Alexander Mann Solutions,       81351,"2,964.20",Interim Staff
ECGD,ECGD,10 Oct 21,Agency - Temporary Staff,HRD,Alexander Mann Solutions,       81351,796.61,Interim Staff
ECGD,ECGD,10 Oct 21,Overseas Export Managers,OCCMC,Foreign & Commonwealth Office,       81357,12.39,Overseas Staff
ECGD,ECGD,10 Oct 21,Overseas Export Managers,OCCMC,Foreign & Commonwealth Office,       81357,84.64,Overseas Staff
ECGD,ECGD,10 Oct 21,Overseas Export Managers,OCCMC,Foreign & Commonwealth Office,       81357,"43,826.84",Overseas Staff
ECGD,ECGD,11 Oct 21,IT Managed Services,ID,Risual Ltd,       81358,"122,532.40",IT Systems
ECGD,ECGD,11 Oct 21,Change Board Projects,Change Board,Method4 Limited,       81359,"25,892.35",Project IT services
ECGD,ECGD,15 Oct 21,Overseas Export Managers,OCCMC,Green Park Interim & Executive Searc,       81366,"28,190.17",Overseas Staff
ECGD,ECGD,15 Oct 21,Change Board Projects,Change Board,Ten10 Solutions Limited,       81377,"34,675.00",Project IT services
ECGD,ECGD,19 Oct 21,Learning and Development,HRD,KPMG,       81379,"39,130.00",L&D Training programme
ECGD,ECGD,19 Oct 21,Agency - Interim Managers,HRD,Alexander Mann Solutions,       81393,379.83,Interim Staff
ECGD,ECGD,19 Oct 21,Agency - Interim Managers,HRD,Alexander Mann Solutions,       81393,"1,308.84",Interim Staff
ECGD,ECGD,19 Oct 21,Agency - Interim Managers,HRD,Alexander Mann Solutions,       81393,"1,745.12",Interim Staff
ECGD,ECGD,19 Oct 21,Agency - Interim Managers,HRD,Alexander Mann Solutions,       81393,"2,100.20",Interim Staff
ECGD,ECGD,19 Oct 21,Agency - Interim Managers,HRD,Alexander Mann Solutions,       81393,"2,100.20",Interim Staff
ECGD,ECGD,19 Oct 21,Agency - Interim Managers,HRD,Alexander Mann Solutions,       81393,"2,556.55",Interim Staff
ECGD,ECGD,19 Oct 21,Agency - Interim Managers,HRD,Alexander Mann Solutions,       81393,"2,637.70",Interim Staff
ECGD,ECGD,19 Oct 21,Agency - Interim Managers,HRD,Alexander Mann Solutions,       81393,"2,668.45",Interim Staff
ECGD,ECGD,19 Oct 21,Agency - Interim Managers,HRD,Alexander Mann Solutions,       81393,"3,005.50",Interim Staff
ECGD,ECGD,19 Oct 21,Agency - Specialist Contractors,HRD,Alexander Mann Solutions,       81393,"2,258.44",Interim Staff
ECGD,ECGD,19 Oct 21,Agency - Specialist Contractors,HRD,Alexander Mann Solutions,       81393,"2,258.44",Interim Staff
ECGD,ECGD,19 Oct 21,Agency - Specialist Contractors,HRD,Alexander Mann Solutions,       81393,"2,823.05",Interim Staff
ECGD,ECGD,19 Oct 21,Agency - Specialist Contractors,HRD,Alexander Mann Solutions,       81393,"2,874.32",Interim Staff
ECGD,ECGD,19 Oct 21,Agency - Temporary Staff,HRD,Alexander Mann Solutions,       81393,645.90,Interim Staff
ECGD,ECGD,19 Oct 21,Agency - Temporary Staff,HRD,Alexander Mann Solutions,       81393,865.50,Interim Staff
ECGD,ECGD,19 Oct 21,Change Board Projects,Change Board,KPMG,       81394,"30,000.00",Project IT services
ECGD,ECGD,25 Oct 21,IT Software Licensing & Subscription,ID,Fidelity National Info Services,       81401,"104,414.18",IT Systems
ECGD,ECGD,25 Oct 21,Consultancy,ID,Ten10 Solutions Limited,       81407,"28,105.00",IT Consultancy
ECGD,ECGD,25 Oct 21,Agency - Interim Managers,HRD,Alexander Mann Solutions,       81410,"2,100.20",Interim Staff
ECGD,ECGD,25 Oct 21,Agency - Interim Managers,HRD,Alexander Mann Solutions,       81410,"2,181.40",Interim Staff
ECGD,ECGD,25 Oct 21,Agency - Interim Managers,HRD,Alexander Mann Solutions,       81410,"2,556.55",Interim Staff
ECGD,ECGD,25 Oct 21,Agency - Interim Managers,HRD,Alexander Mann Solutions,       81410,"2,668.45",Interim Staff
ECGD,ECGD,25 Oct 21,Agency - Interim Managers,HRD,Alexander Mann Solutions,       81410,"3,005.50",Interim Staff
ECGD,ECGD,25 Oct 21,Agency - Specialist Contractors,HRD,Alexander Mann Solutions,       81410,"2,258.44",Interim Staff
ECGD,ECGD,25 Oct 21,Agency - Specialist Contractors,HRD,Alexander Mann Solutions,       81410,"2,823.05",Interim Staff
ECGD,ECGD,25 Oct 21,Agency - Specialist Contractors,HRD,Alexander Mann Solutions,       81410,"2,823.05",Interim Staff
ECGD,ECGD,25 Oct 21,Agency - Temporary Staff,HRD,Alexander Mann Solutions,       81410,635.14,Interim Staff
ECGD,ECGD,25 Oct 21,Agency - Temporary Staff,HRD,Alexander Mann Solutions,       81410,865.50,Interim Staff
ECGD,ECGD,25 Oct 21,Agency - Temporary Staff,HRD,Alexander Mann Solutions,       81410,865.50,Interim Staff
ECGD,ECGD,28 Oct 21,Marketing,OCCMC,Engine Partners UK LLP,       81421,"41,096.90",Marketing & Communications
ECGD,ECGD,28 Oct 21,Marketing,OCCMC,Manning Gottlieb OMD,       81423,"30,311.25",Marketing & Communications
ECGD,ECGD,28 Oct 21,Salaries & Wages,HRD,Cabinet Office,       81429,"28,150.00",Internal salary related costs
4 Nov 21,,,- 1 -,,,07:58:37,,
